Workbook

Sheet Приложение 1
M1: Приложение 3
J2: к постановлению администрации города Усолье-Сибирское
L3: от 26.12.2025 №2472-па
J4: "Приложение 3
H5: к муниципальной программе города Усолье-Сибирское
H6: "Совершенствование муниципального регулирования" на 2019-2027 гг."
A8: Ресурсное обеспечение реализации муниципальной программы города Усолье-Сибирское
A9: "Совершенствование муниципального регулирования" на 2019-2027 годы (далее - Программа)
A11: Наименование Программы, подпрограммы, основного мероприятия, мероприятия, проекта | B11: Ответственный исполнитель Программы, соисполнители Программы, участники Программы, участники подпрограммы | C11: Источник финансирования | D11: Общий объем финансирования, руб. | E11: Объем финансирования , руб.
E12: 2019 год | F12: 2020 год | G12: 2021 год | H12: 2022 год | I12: 2023 год | J12: 2024 год | K12: 2025 год | L12: 2026 год | M12: 2027 год
A14: Муниципальная программа города Усолье-Сибирское "Совершенствование муниципального регулирования" на 2019-2027 годы | B14: Комитет экономического развития администрации города | C14: Всего | D14: =D15+D16 -> 2,736,169,582.57 | E14: =E15+E16 -> 179,894,561.00 | F14: 232,113,667.27 | G14: 275,289,307.81 | H14: 303,454,821.02 | I14: 367,997,227.05 | J14: 364,243,023.46 | K14: 382,528,654.10 | L14: 314,724,160.43 | M14: 315,924,160.43
C15: Бюджет города | D15: =SUM(E15:M15) -> 2,675,600,247.38 | E15: =E17+E24+E80 -> 176,322,455.11 | F15: 225,291,637.97 | G15: 271,052,007.81 | H15: 303,454,821.02 | I15: 352,059,327.05 | J15: 364,243,023.46 | K15: 382,528,654.10 | L15: 299,724,160.43 | M15: 300,924,160.43
C16: Областной бюджет | D16: =SUM(E16:M16) -> 60,569,335.19 | E16: =E25+E81 -> 3,572,105.89 | F16: 6,822,029.30 | G16: 4,237,300.00 | H16: 0.00 | I16: 15,937,900.00 | J16: 0.00 | K16: 0.00 | L16: 15,000,000.00 | M16: 15,000,000.00
A17: Подпрограмма 1 "Управление муниципальными финансами города Усолье-Сибирское" на 2019-2027 годы | B17: Комитет по финансам администрации города | C17: Бюджет города | D17: =SUM(E17:M17) -> 163,689,062.36 | E17: =E18+E20 -> 11,125,093.78 | F17: 13,072,575.51 | G17: 15,272,213.17 | H17: 17,812,379.15 | I17: 19,233,032.63 | J17: 21,300,452.56 | K17: 21,393,415.70 | L17: 22,239,949.93 | M17: 22,239,949.93
A18: Основное мероприятие 1.1. Обеспечение эффективного управления муниципальными финансами, формирования, организации исполнения бюджета города | B18: Комитет по финансам администрации города | C18: Бюджет города | D18: =E18+F18+G18+H18+I18+J18+K18+L18+M18 -> 160,517,891.50 | E18: 11,039,960.58 | F18: =12734649.51+186313.35 -> 12,920,962.86 | G18: =12734649.51+2429860.25 -> 15,164,509.76 | H18: =15315461.54+1592673.91+325500 -> 17,233,635.45 | I18: 19,063,500.22 | J18: 21,239,949.93 | K18: =21239949.93+36895.97+92126.94+6500 -> 21,375,472.84 | L18: 21,239,949.93 | M18: 21,239,949.93
A19: Основное мероприятие 1.2. Организация работы по наполнению доходами бюджета города | B19: Комитет по финансам администрации города | C19: Бюджет города | D19: Без финансирования | E19: Без финансирования | F19: Без финансирования | G19: Без финансирования | H19: Без финансирования | I19: Без финансирования | J19: Без финансирования | K19: Без финансирования | L19: Без финансирования | M19: Без финансирования
A20: Основное мероприятие 1.3. Управление муниципальным долгом города Усолье-Сибирское и его обслуживание | B20: Комитет по финансам администрации города | C20: Бюджет города | D20: =E20+F20+G20+H20+I20+J20+K20+L20+M20 -> 3,171,170.86 | E20: =376122.2-140000-150989 -> 85,133.20 | F20: =506122.2-45000-128247.67-181261.88 -> 151,612.65 | G20: =450000+1388789.04-500000-232280-45573.33-220000-733232.3 -> 107,703.41 | H20: =948743.7-70000-300000 -> 578,743.70 | I20: 169,532.41 | J20: =1000000-939497.37 -> 60,502.63 | K20: =1000000-195616.94-94500-6500-685440.2 -> 17,942.86 | L20: 1,000,000.00 | M20: 1,000,000.00
A21: Основное мероприятие 1.4. Совершенствование осуществления внутреннего муниципального финансового контроля в сфере бюджетных правоотношений, контроля за соблюдением законодательства Российской Федерации и иных нормативных правовых актов о контрактной системе в сфере закупок товаров, работ, услуг для обеспечения муниципальных нужд на территории города Усолье-Сибирское | B21: Комитет по финансам администрации города, отдел внутреннего муниципального финансового контроля и контроля в сфере закупок администрации города Усолье-Сибирское | C21: Бюджет города | D21: Без финансирования | E21: Без финансирования | F21: Без финансирования | G21: Без финансирования | H21: Без финансирования | I21: Без финансирования | J21: Без финансирования | K21: Без финансирования | L21: Без финансирования | M21: Без финансирования
A22: Подпрограмма 2 "Повышение эффективности бюджетных расходов города Усолье-Сибирское" на 2019-2027 годы | B22: Комитет по финансам администрации города | C22: Бюджет города | D22: Без финансирования | E22: Без финансирования | F22: Без финансирования | G22: Без финансирования | H22: Без финансирования | I22: Без финансирования | J22: Без финансирования | K22: Без финансирования | L22: Без финансирования | M22: Без финансирования
A23: Подпрограмма 3 "Обеспечение эффективного управления и распоряжения земельными участками и муниципальным имуществом на территории муниципального образования "город Усолье-Сибирское" на 2019-2027 годы | B23: Комитет по управлению муниципальным имуществом администрации города | C23: Всего | D23: =D24+D25 -> 342,568,681.28 | E23: =E24+E25 -> 25,356,368.81 | F23: =F24+F25 -> 29,378,541.99 | G23: =G24+G25 -> 30,361,534.21 | H23: =H24+H25 -> 32,051,334.48 | I23: 56,728,555.58 | J23: 50,280,431.42 | K23: 52,888,741.75 | L23: 32,761,586.52 | M23: 32,761,586.52
C24: Бюджет города | D24: =D27+D50+D55+D73 -> 328,316,575.39 | E24: =E27+E50+E55+E73 -> 21,784,262.92 | F24: 29,378,541.99 | G24: 30,361,534.21 | H24: 32,051,334.48 | I24: =I27+I50+I55+I73 -> 46,048,555.58 | J24: =J27+J50+J55+J73 -> 50,280,431.42 | K24: 52,888,741.75 | L24: 32,761,586.52 | M24: 32,761,586.52
C25: Областной бюджет | D25: =D56+D47 -> 14,252,105.89 | E25: =E56+E47 -> 3,572,105.89 | F25: 0.00 | G25: 0.00 | H25: 0.00 | I25: 10,680,000.00 | J25: 0.00 | K25: 0.00 | L25: 0.00 | M25: 0.00
A26: Основное мероприятие 3.1. Организация процесса управления и распоряжения муниципальным имуществом | B26: Комитет по управлению муниципальным имуществом администрации города | C26: всего | D26: =D27+D28 -> 27,893,078.26 | E26: =E27+E28 -> 702,424.43 | F26: 4,166,754.96 | G26: 1,862,826.48 | H26: 940,010.91 | I26: 13,229,222.43 | J26: 6,070,830.09 | K26: 921,008.96 | L26: 0.00 | M26: 0.00
C27: Бюджет города | D27: =D29+D30+D31+D32+D33+D37+D38+D39+D40+D41+D42+D43+D44+D46+D48+D49 -> 17,213,078.26 | E27: =E29+E30+E31+E32+E33+E37+E38+E39+E40+E41+E42+E43+E44+E46+E48 -> 702,424.43 | F27: 4,166,754.96 | G27: 1,862,826.48 | H27: 940,010.91 | I27: 2,549,222.43 | J27: =J29+J30+J31+J32+J33+J37+J38+J39+J40+J41+J42+J43+J44+J46+J48+J49 -> 6,070,830.09 | K27: =K29+K30+K31+K32+K33+K37+K38+K39+K40+K41+K42+K43+K44+K46+K48+K49 -> 921,008.96 | L27: 0.00 | M27: 0.00
C28: Областной бюджет | D28: =E28+F28+G28+H28+I28+J28+K28+L28 -> 10,680,000.00 | E28: 0.00 | F28: 0.00 | G28: 0.00 | H28: 0.00 | I28: 10,680,000.00 | J28: 0.00 | K28: 0.00 | L28: 0.00 | M28: 0.00
A29: Мероприятие 3.1.1. Проведение технической инвентаризации и паспортизации объектов муниципального имущества, постановка их на государственный кадастровый учет, регистрация права собственности на объекты муниципального имущества | B29: Комитет по управлению муниципальным имуществом администрации города | C29: Бюджет города | D29: =SUM(E29:M29) -> 2,852,658.46 | E29: 324,848.98 | F29: =214900+60000+47586.88 -> 322,486.88 | G29: =231116.38+7120.72-2790-75276.13 -> 160,170.97 | H29: =155834.14+6000+24000 -> 185,834.14 | I29: 461,011.32 | J29: 1,160,834.01 | K29: =270000-32527.84 -> 237,472.16 | L29: 0.00 | M29: 0.00
A30: Мероприятие 3.1.2. Проведение рыночной оценки приватизируемого или предоставляемого в аренду муниципального имущества | B30: Комитет по управлению муниципальным имуществом администрации города | C30: Бюджет города | D30: =E30+F30+G30+H30+I30+J30+K30+L30+M30 -> 1,897,510.09 | E30: 254,321.85 | F30: =207280-86220.48-25379.81 -> 95,679.71 | G30: =233014+250000-130245.36+43265.36 -> 396,034.00 | H30: =156629.7-15800.89+24480.96 -> 165,309.77 | I30: 256,360.03 | J30: 464,411.08 | K30: =567000-301606.35 -> 265,393.65 | L30: 0.00 | M30: 0.00
A31: Мероприятие 3.1.3. Нотариальное удостоверение подлинности документов, оплата государственной пошлины, возмещение расходов на уведомление кредиторов по делам о банкротстве | B31: Комитет по управлению муниципальным имуществом администрации города | C31: Бюджет города | D31: =SUM(E31:M31) -> 889,619.00 | E31: 0.00 | F31: =20000-19600 -> 400.00 | G31: =20000-20000 -> 0.00 | H31: 400.00 | I31: 0.00 | J31: 720,955.00 | K31: =456800-113166.64-175769.36 -> 167,864.00 | L31: 0.00 | M31: 0.00
A32: Мероприятие 3.1.4. Размещение информационных сообщений в СМИ | B32: Комитет по управлению муниципальным имуществом администрации города | C32: Бюджет города | D32: =SUM(E32:M32) -> 249,430.80 | E32: =4000*26-28440-6129.2 -> 69,430.80 | F32: =156000-116000 -> 40,000.00 | G32: =95640.64-55640.64 -> 40,000.00 | H32: =36000-10000 -> 26,000.00 | I32: 20,000.00 | J32: 30,000.00 | K32: 24,000.00 | L32: 0.00 | M32: 0.00
A33: Мероприятие 3.1.5. Списание и утилизация муниципального имущества | B33: Комитет по управлению муниципальным имуществом администрации города | C33: Бюджет города | D33: =SUM(E33:M33) -> 17,800.00 | E33: =380462-380462 -> 0.00 | F33: =380462-380462 -> 0.00 | G33: 0.00 | H33: 0.00 | I33: 0.00 | J33: 0.00 | K33: 17,800.00 | L33: 0.00 | M33: 0.00
A34: Мероприятие 3.1.6. Выявление бесхозяйных объектов на территории города Усолье-Сибирское и проведение мероприятий с целью регистрации муниципального права собственности | B34: Комитет по управлению муниципальным имуществом администрации города | C34: Бюджет города | D34: Без финансирования | E34: Без финансирования | F34: Без финансирования | G34: Без финансирования | H34: Без финансирования | I34: Без финансирования | J34: Без финансирования | K34: Без финансирования | L34: Без финансирования | M34: Без финансирования
A35: Мероприятие 3.1.7. Осуществление общего контроля за результатами финансово-хозяйственной деятельности муниципальных унитарных предприятий, эффективностью и целевым использованием закрепленного за ними на праве хозяйственного ведения муниципального имущества | B35: Комитет по управлению муниципальным имуществом администрации города | C35: Бюджет города | D35: Без финансирования | E35: Без финансирования | F35: Без финансирования | G35: Без финансирования | H35: Без финансирования | I35: Без финансирования | J35: Без финансирования | K35: Без финансирования | L35: Без финансирования | M35: Без финансирования
A36: Мероприятие 3.1.8. Проведение анализа и согласование программ деятельности муниципальных унитарных предприятий на очередной финансовый год | B36: Комитет по управлению муниципальным имуществом администрации города | C36: Бюджет города | D36: Без финансирования | E36: Без финансирования | F36: Без финансирования | G36: Без финансирования | H36: Без финансирования | I36: Без финансирования | J36: Без финансирования | K36: Без финансирования | L36: Без финансирования | M36: Без финансирования
A37: Мероприятие 3.1.9. Подготовка актов об отсутствии объектов недвижимости на земельном участке | B37: Комитет по управлению муниципальным имуществом администрации города | C37: Бюджет города | D37: =SUM(E37:M37) -> 0.00 | E37: =2000*2-4000 -> 0.00 | F37: 0.00 | G37: 0.00 | H37: 0.00 | I37: 0.00 | J37: 0.00 | K37: 0.00 | L37: 0.00 | M37: 0.00
A38: Мероприятие 3.1.10. Проведение мероприятий по приведению жилых помещений к установленным санитарным и техническим нормам | B38: Комитет по управлению муниципальным имуществом администрации города | C38: Бюджет города | D38: =SUM(E38:M38) -> 1,302,495.49 | E38: =10*5382.28 -> 53,822.80 | F38: =99572.18+50000-19952.28 -> 129,619.90 | G38: =283430.4+55000+3685.16 -> 342,115.56 | H38: =96330.26-60.26 -> 96,270.00 | I38: 261,851.08 | J38: 210,337.00 | K38: 208,479.15 | L38: 0.00 | M38: 0.00
A39: Мероприятие 3.1.11. Организация доставки имущества (трамваев) | B39: Комитет по управлению муниципальным имуществом администрации города | C39: Бюджет города | D39: 2,861,600.00 | E39: 0.00 | F39: =6823340-2823340-1138400 -> 2,861,600.00 | G39: 0.00 | H39: 0.00 | I39: 0.00 | J39: 0.00 | K39: 0.00 | L39: 0.00 | M39: 0.00
A40: Мероприятие 3.1.12. Приобретение технологического оборудования | B40: Комитет по управлению муниципальным имуществом администрации города | C40: Бюджет города | D40: 991,268.47 | E40: 0.00 | F40: =800000-83031.53 -> 716,968.47 | G40: =0+274300 -> 274,300.00 | H40: 0.00 | I40: 0.00 | J40: 0.00 | K40: 0.00 | L40: 0.00 | M40: 0.00
A41: Мероприятие 3.1.13. Приобретение материальных запасов | B41: Комитет по управлению муниципальным имуществом администрации города | C41: Бюджет города | D41: 552,092.95 | E41: 0.00 | F41: 0.00 | G41: =500000-32584.05 -> 467,415.95 | H41: =84865-188 -> 84,677.00 | I41: 0.00 | J41: 0.00 | K41: 0.00 | L41: 0.00 | M41: 0.00
A42: Мероприятие 3.1.14. Разработка проектов по демонтажу аварийных объектов | B42: МКУ "Городское управление капитального строительства" | C42: Бюджет города | D42: 715,000.00 | E42: 0.00 | F42: 0.00 | G42: 180,000.00 | H42: 180,000.00 | I42: 230,000.00 | J42: 125,000.00 | K42: 0.00 | L42: 0.00 | M42: 0.00
A43: Мероприятие 3.1.15. Мероприятие по приобретение информационных баннеров | B43: Комитет по управлению муниципальным имуществом администрации города | C43: Бюджет города | D43: 9,340.00 | E43: 0.00 | F43: 0.00 | G43: 2,790.00 | H43: =6550 -> 6,550.00 | I43: 0.00 | J43: 0.00 | K43: 0.00 | L43: 0.00 | M43: 0.00
A44: Мероприятие 3.1.16. Инженерное обследование строительных конструкций защитного сооружения гражданской обороны, расположенного по адресу г.Усолье-Сибирское ул.Лермонтова, 2А | B44: Комитет по управлению муниципальным имуществом администрации города | C44: Бюджет города | D44: 194,970.00 | E44: 0.00 | F44: 0.00 | G44: 0.00 | H44: =582000-387030 -> 194,970.00 | I44: 0.00 | J44: 0.00 | K44: 0.00 | L44: 0.00 | M44: 0.00
A45: Мероприятие 3.1.17. Приобретение подвижного состава пассажирского транспорта общего пользования | B45: Комитет по управлению муниципальным имуществом администрации города | C45: Всего | D45: 12,000,000.00 | E45: =E46+E47 -> 0.00 | F45: 0.00 | G45: 0.00 | H45: 0.00 | I45: 12,000,000.00 | J45: 0.00 | K45: 0.00 | L45: 0.00 | M45: 0.00
C46: Бюджет города | D46: 1,320,000.00 | E46: 0.00 | F46: 0.00 | G46: 0.00 | H46: 0.00 | I46: 1,320,000.00 | J46: 0.00 | K46: 0.00 | L46: 0.00 | M46: 0.00
C47: Областной бюджет | D47: 10,680,000.00 | E47: 0.00 | F47: 0.00 | G47: 0.00 | H47: 0.00 | I47: 10,680,000.00 | J47: 0.00 | K47: 0.00 | L47: 0.00 | M47: 0.00
A48: Мероприятие 3.1.18. Приобретение специализированной техники | B48: Комитет по управлению муниципальным имуществом администрации города | C48: Бюджет города | D48: 2,881,600.00 | E48: 0.00 | F48: 0.00 | G48: 0.00 | H48: 0.00 | I48: 0.00 | J48: 2,881,600.00 | K48: 0.00 | L48: 0.00 | M48: 0.00
A49: Мероприятие 3.1.19. Приобретение объектов недвижимого имущества в собственность муниципального образования "город Усолье-Сибирское" | B49: Комитет по управлению муниципальным имуществом администрации города | C49: Бюджет города | D49: 477,693.00 | E49: 0.00 | F49: 0.00 | G49: 0.00 | H49: 0.00 | I49: 0.00 | J49: 477,693.00 | K49: 0.00 | L49: 0.00 | M49: 0.00
A50: Основное мероприятие 3.2. Организация процесса управления и распоряжения земельными участками | B50: Комитет по управлению муниципальным имуществом администрации города | C50: Всего | D50: =D51+D52+D53 -> 5,788,298.98 | E50: =E51+E52+E53 -> 1,059,883.27 | F50: 526,197.83 | G50: 438,780.23 | H50: 1,020,305.34 | I50: 1,078,556.44 | J50: 1,108,770.37 | K50: 555,805.50 | L50: 0.00 | M50: 0.00
A51: Мероприятие 3.2.1. Обеспечение полноты зарегистрированных прав муниципального образования "город Усолье-Сибирское" на земельные участки, расположенные на территории муниципального образования "город Усолье-Сибирское", государственная собственность на которые не разграничена, земельные участки под объектами | B51: Комитет по управлению муниципальным имуществом администрации города | C51: Бюджет города | D51: =SUM(E51:M51) -> 4,942,294.99 | E51: =996262.92+1269.19 -> 997,532.11 | F51: =6504790-662550-442954.88-2794017-326435.51-916786.74-900000-343.48 -> 461,702.39 | G51: =1698511.84-1196110.71-104573.64 -> 397,827.49 | H51: =677713.89+996802.3-628000-356313.22+84705.88 -> 774,908.85 | I51: 938,474.74 | J51: =1484787-147300-375000-28153.81 -> 934,333.19 | K51: =1097140-16999.8-12000-17800-40887.32-571936.66 -> 437,516.22 | L51: 0.00 | M51: 0.00
A52: Мероприятие 3.2.2. Проведение рыночной оценки приватизируемых или предоставляемых в аренду земельных участков | B52: Комитет по управлению муниципальным имуществом администрации города | C52: Бюджет города | D52: =SUM(E52:M52) -> 763,583.97 | E52: =144500+8696.63-92528.6+1683.13 -> 62,351.16 | F52: =144500-36999.07-43005.49 -> 64,495.44 | G52: =143002.5-49808.56-52241.2 -> 40,952.74 | H52: =146886.4+40000+23832.31-47742.24 -> 162,976.47 | I52: 140,081.70 | J52: =193060-18622.82 -> 174,437.18 | K52: =160000-41710.72 -> 118,289.28 | L52: 0.00 | M52: 0.00
A53: Мероприятие 3.2.3. Снос самовольных построек | B53: Комитет по управлению муниципальным имуществом администрации города | C53: Бюджет города | D53: =SUM(E53:M53) -> 82,420.02 | E53: 0.00 | F53: 0.00 | G53: 0.00 | H53: =283804.36-201384.34 -> 82,420.02 | I53: 0.00 | J53: 0.00 | K53: 0.00 | L53: 0.00 | M53: 0.00
A54: Основное мероприятие 3.3. Выполнение обязательств по владению и пользованию муниципальным имуществом | B54: Комитет по управлению муниципальным имуществом администрации города | C54: Всего | D54: =D55+D56 -> 70,604,152.88 | E54: =E55+E56 -> 8,929,994.90 | F54: =F55+F56 -> 5,795,806.91 | G54: =G55+G56 -> 4,477,014.12 | H54: 6,186,067.66 | I54: 14,410,955.48 | J54: 10,590,669.60 | K54: 18,946,514.93 | L54: 654,262.64 | M54: 612,866.64
C55: Бюджет города | D55: =D57+D60+D61+D62+D64+D66+D67+D68+D69+D70+D71+D72 -> 67,032,046.99 | E55: =E57+E60+E61+E62+E64+E66+E67+E68+E69+E70+E71 -> 5,357,889.01 | F55: 5,795,806.91 | G55: 4,477,014.12 | H55: 6,186,067.66 | I55: =I58+I60+I61+I69+I71 -> 14,410,955.48 | J55: =J57+J60+J61+J62+J64+J66+J67+J68+J69+J70+J71 -> 10,590,669.60 | K55: =K57+K60+K61+K62+K64+K66+K67+K68+K69+K70+K71+K72 -> 18,946,514.93 | L55: 654,262.64 | M55: 612,866.64
C56: Областной бюджет | D56: =D65 -> 3,572,105.89 | E56: =E65 -> 3,572,105.89 | F56: 0.00 | G56: 0.00 | H56: 0.00 | I56: 0.00 | J56: 0.00 | K56: 0.00 | L56: 0.00 | M56: 0.00
A57: Мероприятие 3.3.1. Содержание временно не эксплуатируемых объектов | B57: Комитет по управлению муниципальным имуществом администрации города | C57: Всего | D57: =SUM(E57:M57) -> 32,751,829.11 | E57: =E58+E59 -> 2,063,208.59 | F57: =F58+F59 -> 3,330,133.05 | G57: =G58+G59 -> 1,791,035.12 | H57: 1,762,531.44 | I57: 7,660,805.30 | J57: 5,544,506.76 | K57: 9,750,049.57 | L57: 445,477.64 | M57: 404,081.64
C58: Бюджет города | D58: 30,708,390.89 | E58: =1407602.69+36457.68 -> 1,444,060.37 | F58: =1189294.77+654400+610600-241628.45-262393.3-44429.97 -> 1,905,843.05 | G58: =1422804.12+12721.7+29921.07+183905.38+151777.41-10094.56 -> 1,791,035.12 | H58: =1439905.62+98000+150000+74625.82 -> 1,762,531.44 | I58: 7,660,805.30 | J58: 5,544,506.76 | K58: =10815564.19-400000-524273.68-141240.94 -> 9,750,049.57 | L58: 445,477.64 | M58: 404,081.64
B59: МКУ "Городское управление капитального строительства" | C59: Бюджет города | D59: 2,043,438.22 | E59: 619,148.22 | F59: =1636390-212100 -> 1,424,290.00 | G59: 0.00 | H59: 0.00 | I59: 0.00 | J59: 0.00 | K59: 0.00 | L59: 0.00 | M59: 0.00
A60: Мероприятие 3.3.2. Исполнение обязательств при владении и пользовании муниципальным имуществом (ОСАГО, налоги, пени, штрафы) | B60: Комитет по управлению муниципальным имуществом администрации города | C60: Бюджет города | D60: 2,276,241.28 | E60: 662,817.76 | F60: =239040-104370 -> 134,670.00 | G60: =365850.6-172489.24 -> 193,361.36 | H60: =304061.55-156550-38407.55 -> 109,104.00 | I60: 106,251.00 | J60: 381,715.00 | K60: =208785+61967.16 -> 270,752.16 | L60: 208,785.00 | M60: 208,785.00
A61: Мероприятие 3.3.3. Содержание гидротехнических сооружений КОС-1, 2, водозабор "Ангара" | B61: Комитет по управлению муниципальным имуществом администрации города | C61: Бюджет города | D61: 21,280,533.51 | E61: =2091009.55-114910 -> 1,976,099.55 | F61: =2569100+8150-167645.12+233980-527422 -> 2,116,162.88 | G61: =3460473.36-512721.7-857000-211169.07-827971.54-151777.41 -> 899,833.64 | H61: =2076500.49-41.61 -> 2,076,458.88 | I61: 3,797,276.88 | J61: 3,088,988.48 | K61: =7047730.08+277983.12 -> 7,325,713.20 | L61: 0.00 | M61: 0.00
A62: Мероприятие 3.3.4. Проектно-сметная документация по ремонту здания для размещения кабинета врача | B62: МКУ "Городское управление капитального строительства" | C62: Бюджет города | D62: 122,000.00 | E62: =120000+2000 -> 122,000.00 | F62: 0.00 | G62: 0.00 | H62: 0.00 | I62: 0.00 | J62: 0.00 | K62: 0.00 | L62: 0.00 | M62: 0.00
A63: Мероприятие 3.3.5. Капитальный ремонт здания по адресу: Иркутская область, г. Усолье-Сибирское, ул. Крупской, д. 38 (ремонт кабинета врача, ремонт систем инженерно-технического обеспечения) | B63: МКУ "Городское управление капитального строительства" | C63: Всего | D63: 4,105,869.00 | E63: =E64+E65 -> 4,105,869.00 | F63: =F64+F65 -> 0.00 | G63: =G64+G65 -> 0.00 | H63: 0.00 | I63: 0.00 | J63: 0.00 | K63: 0.00 | L63: 0.00 | M63: 0.00
C64: Бюджет города | D64: 533,763.11 | E64: =643500.17-109737.06 -> 533,763.11 | F64: 0.00 | G64: 0.00 | H64: 0.00 | I64: 0.00 | J64: 0.00 | K64: 0.00 | L64: 0.00 | M64: 0.00
C65: Областной бюджет | D65: 3,572,105.89 | E65: =4306499.83-734393.94 -> 3,572,105.89 | F65: 0.00 | G65: 0.00 | H65: 0.00 | I65: 0.00 | J65: 0.00 | K65: 0.00 | L65: 0.00 | M65: 0.00
A66: Мероприятие 3.3.6. Обследование технического состояния муниципальных жилых домов | B66: Комитет по управлению муниципальным имуществом администрации города | C66: Бюджет города | D66: 0.00 | E66: 0.00 | F66: 0.00 | G66: 0.00 | H66: 0.00 | I66: 0.00 | J66: 0.00 | K66: 0.00 | L66: 0.00 | M66: 0.00
A67: Мероприятие 3.3.7. Ремонт фасада здания Усольского городского совета ветеранов, по адресу: ул. Молотовая,92; ремонт нежилого помещения по адресу: пр-кт Космонавтов,32 | B67: Комитет по управлению муниципальным имуществом администрации города | C67: Бюджет города | D67: 214,840.98 | E67: 0.00 | F67: =255403.79-40562.81 -> 214,840.98 | G67: 0.00 | H67: 0.00 | I67: 0.00 | J67: 0.00 | K67: 0.00 | L67: 0.00 | M67: 0.00
A68: Мероприятие 3.3.8. Переустройство, перепланировка нежилого помещения по адресу: г. Усолье-Сибирское, пр-т Космонавтов,32 | B68: Комитет по управлению муниципальным имуществом администрации города | C68: Бюджет города | D68: 2,086,029.26 | E68: 0.00 | F68: 0.00 | G68: =787000+182120+96912 -> 1,066,032.00 | H68: 1,019,997.26 | I68: 0.00 | J68: 0.00 | K68: 0.00 | L68: 0.00 | M68: 0.00
A69: Мероприятие 3.3.9. Охрана электрооборудования, расположенного на территории промышленной площадки "Усольехимпорм" | B69: Комитет по управлению муниципальным имуществом администрации города | C69: Бюджет города | D69: 5,709,977.53 | E69: 0.00 | F69: 0.00 | G69: =181248+345504 -> 526,752.00 | H69: 1,140,359.05 | I69: 2,467,407.12 | J69: 1,575,459.36 | K69: 0.00 | L69: 0.00 | M69: 0.00
A70: Мероприятие 3.3.10. Приобретение и установка пожарной сигнализации по адресу: Молотовая 92 | B70: Комитет по управлению муниципальным имуществом администрации города | C70: Бюджет города | D70: 77,617.03 | E70: 0.00 | F70: 0.00 | G70: 0.00 | H70: =232712.63-155095.6 -> 77,617.03 | I70: 0.00 | J70: 0.00 | K70: 0.00 | L70: 0.00 | M70: 0.00
A71: Мероприятие 3.3.11. Ремонт крыльца здания Совета ветеранов, г.Усолье-Сибирское, Молотовая,92. | B71: Комитет по управлению муниципальным имуществом администрации города | C71: Бюджет города | D71: 379,215.18 | E71: 0.00 | F71: 0.00 | G71: 0.00 | H71: 0.00 | I71: 379,215.18 | J71: 0.00 | K71: 0.00 | L71: 0.00 | M71: 0.00
A72: Мероприятие 3.3.12. Переустройство, перепланировка и ремонт нежилого помещения по адресу г. Усолье-Сибирское, ул. Молотовая, д.80А | B72: Комитет по управлению муниципальным имуществом администрации города | C72: Бюджет города | D72: =SUM(E72:M72) -> 1,600,000.00 | E72: 0.00 | F72: 0.00 | G72: 0.00 | H72: 0.00 | I72: 0.00 | J72: 0.00 | K72: =1823370-223370 -> 1,600,000.00 | L72: 0.00 | M72: 0.00
A73: Основное мероприятие 3.4. Руководство и управление в сфере установленных функций | B73: Комитет по управлению муниципальным имуществом администрации города | C73: Бюджет города | D73: =D74+D75+D76+D77+D78 -> 238,283,151.16 | E73: =E74+E75+E76+E77+E78 -> 14,664,066.21 | F73: 18,889,782.29 | G73: 23,582,913.38 | H73: 23,904,950.57 | I73: 28,009,821.23 | J73: 32,510,161.36 | K73: 32,465,412.36 | L73: 32,107,323.88 | M73: =M74+M75+M76+M77+M78 -> 32,148,719.88
A74: Мероприятие 3.4.1. Обеспечение деятельности Комитета по управлению муниципальным имуществом администрации города | B74: Комитет по управлению муниципальным имуществом администрации города | C74: Бюджет города | D74: =SUM(E74:M74) -> 231,937,010.65 | E74: 13,961,599.64 | F74: =15858711.68+2834159.61-848074.53 -> 17,844,796.76 | G74: =18692871.29+4204727.08 -> 22,897,598.37 | H74: =23195853.08+27599.79+220464 -> 23,443,916.87 | I74: =27146574.09+581.43 -> 27,147,155.52 | J74: 31,648,261.88 | K74: =31648261.88+36895.97+12000 -> 31,697,157.85 | L74: 31,648,261.88 | M74: 31,648,261.88
A75: Мероприятие 3.4.2. Услуги по сопровождению программного обеспечения | B75: Комитет по управлению муниципальным имуществом администрации города | C75: Бюджет города | D75: =SUM(E75:M75) -> 3,198,218.00 | E75: =174486 -> 174,486.00 | F75: =385900-12328 -> 373,572.00 | G75: =297092-10100 -> 286,992.00 | H75: =314434-3400 -> 311,034.00 | I75: 330,852.00 | J75: =366032-26430 -> 339,602.00 | K75: 422,160.00 | L75: 459,062.00 | M75: 500,458.00
A76: Мероприятие 3.4.3. Повышение квалификации сотрудников комитета по управлению муниципальным имуществом, проведение специальной оценки условий труда | B76: Комитет по управлению муниципальным имуществом администрации города | C76: Бюджет города | D76: =SUM(E76:M76) -> 19,500.00 | E76: 0.00 | F76: 5,600.00 | G76: 0.00 | H76: 0.00 | I76: 0.00 | J76: 0.00 | K76: 13,900.00 | L76: 0.00 | M76: 0.00
A77: Мероприятие 3.4.4. Закупка товаров, работ, услуг для обеспечения деятельности сотрудников комитета по управлению муниципальным имуществом | B77: Комитет по управлению муниципальным имуществом администрации города | C77: Бюджет города | D77: =SUM(E77:M77) -> 3,037,658.08 | E77: =452480.57+75500 -> 527,980.57 | F77: =145000+557910.85-37097.32 -> 665,813.53 | G77: =0+300000+102008.17-3685.16 -> 398,323.01 | H77: =9999.7+140000 -> 149,999.70 | I77: 531,813.71 | J77: 431,533.05 | K77: =16999.8+315194.71 -> 332,194.51 | L77: 0.00 | M77: 0.00
A78: Мероприятие 3.4.5. Проведение аудита бухгалтерской (финансовой) отчетности муниципальных унитарных предприятий | B78: Комитет по управлению муниципальным имуществом администрации города | C78: Бюджет города | D78: =SUM(E78:M78) -> 90,764.43 | E78: 0.00 | F78: 0.00 | G78: 0.00 | H78: 0.00 | I78: 0.00 | J78: 90,764.43 | K78: 0.00 | L78: 0.00 | M78: 0.00
A79: Подпрограмма 4 "Совершенствование муниципального управления города Усолье-Сибирское" на 2019-2027 годы | B79: Экономический отдел комитета экономического развития администрации города | C79: Всего | D79: =D80+D81 -> 2,229,911,838.93 | E79: =E80+E81 -> 143,413,098.41 | F79: 189,662,549.77 | G79: 229,655,560.43 | H79: 253,591,107.39 | I79: 292,035,638.84 | J79: 292,662,139.48 | K79: 308,246,496.65 | L79: 259,722,623.98 | M79: 260,922,623.98
C80: Бюджет города | D80: =D84+D92+D111+D116+D117+D118+D119+D120+D121+D122+D124+D126+D129+D142+D143+D146+D127+D147+D148+D149+D150+D151 -> 2,183,594,609.63 | E80: =E84+E92+E111+E116+E117+E118+E119+E120+E121+E122+E124+E126+E129+E142+E143+E146+E127+E147+E148 -> 143,413,098.41 | F80: 182,840,520.47 | G80: 225,418,260.43 | H80: 253,591,107.39 | I80: 286,777,738.84 | J80: =J84+J92+J111+J116+J117+J118+J119+J120+J121+J122+J124+J126+J129+J142+J143+J146+J127+J147+J148+J149+J150 -> 292,662,139.48 | K80: =K84+K92+K111+K116+K117+K118+K119+K120+K121+K122+K124+K126+K129+K142+K143+K146+K127+K147+K148+K149+K150+K151 -> 308,246,496.65 | L80: =L84+L92+L111+L116+L117+L118+L119+L120+L121+L122+L124+L126+L129+L142+L143+L146+L127+L147+L148+L149+L150 -> 244,722,623.98 | M80: 245,922,623.98
C81: Областной бюджет | D81: =D125+D130+D131 -> 46,317,229.30 | E81: =E125+E130+E131 -> 0.00 | F81: 6,822,029.30 | G81: 4,237,300.00 | H81: 0.00 | I81: 5,257,900.00 | J81: 0.00 | K81: 0.00 | L81: 15,000,000.00 | M81: 15,000,000.00
A82: Основное мероприятие 4.1. Повышение эффективности управления экономическим развитием города Усолье-Сибирское | B82: Комитет экономического развития администрации города | C82: Бюджет города | D82: Без финансирования | E82: Без финансирования | F82: Без финансирования | G82: Без финансирования | H82: Без финансирования | I82: Без финансирования | J82: Без финансирования | K82: Без финансирования | L82: Без финансирования | M82: Без финансирования
A83: Основное мероприятие 4.2. Повышение эффективности деятельности по регулированию контрактной системы в сфере закупок для муниципальных нужд города Усолье-Сибирское | B83: Отдел регулирования контрактной системы в сфере закупок администрации города | C83: Бюджет города | D83: Без финансирования | E83: Без финансирования | F83: Без финансирования | G83: Без финансирования | H83: Без финансирования | I83: Без финансирования | J83: Без финансирования | K83: Без финансирования | L83: Без финансирования | M83: Без финансирования
A84: Основное мероприятие 4.3. Повышение эффективности использования городских территорий и территориальных резервов для осуществления градостроительной деятельности города Усолье-Сибирское | B84: Отдел архитектуры и градостроительства администрации города | C84: Всего | D84: =SUM(D85:D91) -> 69,377,014.19 | E84: =SUM(E85:E91) -> 5,475,970.00 | F84: 7,867,873.00 | G84: 20,110,170.00 | H84: 7,765,135.00 | I84: 13,392,550.00 | J84: 8,091,450.00 | K84: 6,673,866.19 | L84: 0.00 | M84: 0.00
A85: Мероприятие 4.3.1. Разработка документов территориального планирования муниципального образования "город Усолье-Сибирское" | B85: Отдел архитектуры и градостроительства администрации города | C85: Бюджет города | D85: =SUM(E85:M85) -> 46,394,926.19 | E85: 3,130,970.00 | F85: =2525970-299000+3300000+2299000+41903 -> 7,867,873.00 | G85: =4810170+6000000+9300000 -> 20,110,170.00 | H85: =4444135-600000+234412 -> 4,078,547.00 | I85: 3,071,300.00 | J85: 4,862,200.00 | K85: =2959200+523200-184000-24533.81 -> 3,273,866.19 | L85: 0.00 | M85: 0.00
A86: Мероприятие 4.3.2. Актуализация/разработка программы комплексного развития коммунальной инфраструктуры муниципального образования «город Усолье-Сибирское» | B86: Отдел по жизнеобеспечению комитета по городскому хозяйству администрации города | C86: Бюджет города | D86: 2,997,000.00 | E86: 0.00 | F86: 0.00 | G86: 0.00 | H86: 0.00 | I86: 2,997,000.00 | J86: 0.00 | K86: 0.00 | L86: 0.00 | M86: 0.00
A87: Мероприятие 4.3.3. Актуализация/разработка комплексной системы организации дорожного движения, комплексной схемы организации транспортного обслуживания, программы комплексного развития транспортной инфраструктуры, проекта "Организация дорожного движения на автомобильных дорогах общего пользования местного значения" муниципального образования "город Усолье-Сибирское" | B87: Отдел по благоустройству и экологии комитета по городскому хозяйству администрации города | C87: Бюджет города | D87: 4,178,500.00 | E87: 0.00 | F87: 0.00 | G87: 0.00 | H87: 0.00 | I87: 2,089,250.00 | J87: 2,089,250.00 | K87: 0.00 | L87: 0.00 | M87: 0.00
A88: Мероприятие 4.3.4. актуализация программы комплексного развития социальной инфраструктуры муниципального образования города Усолье-Сибирское на 2012-2025 гг. по состоянию на 2021-2022 гг. | B88: Отдел архитектуры и градостроительства администрации города | C88: Бюджет города | D88: 301,588.00 | E88: 0.00 | F88: 0.00 | G88: 0.00 | H88: =600000-298412 -> 301,588.00 | I88: 0.00 | J88: 0.00 | K88: 0.00 | L88: 0.00 | M88: 0.00
A89: Мероприятие 4.3.5. Разработка проекта планировки и проекта межевания территории линейного объекта "Водоснабжение ул. Российской и Ленинградской, Иркутской области г. Усолье-Сибирское" | B89: Отдел архитектуры и градостроительства администрации города | C89: Бюджет города | D89: 95,000.00 | E89: 95,000.00 | F89: 0.00 | G89: 0.00 | H89: 0.00 | I89: 0.00 | J89: 0.00 | K89: 0.00 | L89: 0.00 | M89: 0.00
A90: Мероприятие 4.3.6. Разработка документации для участия во Всероссийском конкурсе лучших проектов создания комфортной среды в категории "малые города" | B90: Отдел архитектуры и градостроительства администрации города | C90: Бюджет города | D90: 8,640,000.00 | E90: 2,250,000.00 | F90: =299000-299000 -> 0.00 | G90: =1500000-1500000 -> 0.00 | H90: 0.00 | I90: 1,850,000.00 | J90: =1600000-800-459200 -> 1,140,000.00 | K90: =4000000-76800-523200 -> 3,400,000.00 | L90: 0.00 | M90: 0.00
A91: Мероприятие 4.3.7. Разработка проектной документации по объекту "Концепция благоустройства ул. Интернациональной "Город из трамвайного окна" в г. Усолье-Сибирское | B91: Отдел по благоустройству и экологии комитета по городскому хозяйству администрации города | C91: Бюджет города | D91: 6,770,000.00 | E91: 0.00 | F91: 0.00 | G91: 0.00 | H91: =4503600-1118600 -> 3,385,000.00 | I91: 3,385,000.00 | J91: 0.00 | K91: 0.00 | L91: 0.00 | M91: 0.00
A92: Основное мероприятие 4.4. Своевременное и достоверное информирование населения города о деятельности органов местного самоуправления муниципального образования "город Усолье-Сибирское" | B92: Администрация города Усолье-Сибирское, Дума города Усолье-Сибирское, КСП города Усолье-Сибирское | C92: Всего | D92: =D96+D100+D103+D106+D109+D110 -> 12,392,374.08 | E92: =E96+E100+E103+E106+E109+E110 -> 1,914,038.92 | F92: 1,313,129.80 | G92: 1,409,509.60 | H92: 1,301,702.34 | I92: 1,376,425.02 | J92: 1,293,773.40 | K92: 1,183,985.00 | L92: 1,299,905.00 | M92: 1,299,905.00
B93: Администрация города | C93: Бюджет города | D93: =D97+D101+D104+D107+D109+D110 -> 9,337,658.27 | E93: =E97+E101+E104+E107+E109 -> 1,629,873.92 | F93: =F97+F101+F104+F107+F109 -> 1,087,434.80 | G93: 1,183,814.60 | H93: 1,076,007.34 | I93: 1,067,187.61 | J93: =J97+J101+J104+J107+J109+J110 -> 735,945.00 | K93: =K97+K101+K104+K107+K109+K110 -> 775,185.00 | L93: 891,105.00 | M93: 891,105.00
B94: Дума города | C94: Бюджет города | D94: =SUM(E94:M94) -> 2,954,955.75 | E94: =E98+E102+E105+E108 -> 273,095.00 | F94: =F98+F102+F105+F108 -> 214,625.00 | G94: =G98+G102+G105+G108 -> 214,625.00 | H94: 214,625.00 | I94: 301,757.35 | J94: 545,828.40 | K94: 396,800.00 | L94: 396,800.00 | M94: 396,800.00
B95: КСП | C95: Бюджет города | D95: =SUM(E95:M95) -> 99,760.06 | E95: =E99 -> 11,070.00 | F95: =F99 -> 11,070.00 | G95: =G99 -> 11,070.00 | H95: 11,070.00 | I95: 7,480.06 | J95: 12,000.00 | K95: 12,000.00 | L95: 12,000.00 | M95: 12,000.00
A96: Мероприятие 4.4.1. Выпуск и распространение газеты Официальное Усолье | B96: Администрация города Усолье-Сибирское, Дума города Усолье-Сибирское, КСП города Усолье-Сибирское | C96: Всего | D96: =D97+D98+D99 -> 6,060,004.84 | E96: =E97+E98+E99 -> 1,147,429.92 | F96: 609,770.00 | G96: 581,070.00 | H96: 553,969.60 | I96: 720,460.92 | J96: 607,513.40 | K96: 607,821.00 | L96: 615,985.00 | M96: 615,985.00
B97: Администрация города | C97: Бюджет города | D97: =SUM(E97:M97) -> 5,496,077.13 | E97: =344850+264000+272800+262000-103760.08 -> 1,039,889.92 | F97: =344850+264000+272800-320950 -> 560,700.00 | G97: =688490.4-71350-70000-15140.4 -> 532,000.00 | H97: =547140.4-26154.8-12200.5-4885.5 -> 503,899.60 | I97: 670,847.61 | J97: 547,185.00 | K97: 547,185.00 | L97: 547,185.00 | M97: 547,185.00
B98: Дума города | C98: Бюджет города | D98: 464,167.65 | E98: 96,470.00 | F98: =96470-58470 -> 38,000.00 | G98: =38000 -> 38,000.00 | H98: 39,000.00 | I98: 42,133.25 | J98: =56800-8471.6 -> 48,328.40 | K98: =56800-8164 -> 48,636.00 | L98: 56,800.00 | M98: 56,800.00
B99: КСП | C99: Бюджет города | D99: 99,760.06 | E99: 11,070.00 | F99: 11,070.00 | G99: 11,070.00 | H99: 11,070.00 | I99: 7,480.06 | J99: 12,000.00 | K99: 12,000.00 | L99: 12,000.00 | M99: 12,000.00
A100: Мероприятие 4.4.2. Информационное сопровождение деятельности органов местного самоуправления города в печатных СМИ | B100: Администрация города Усолье-Сибирское, Дума города Усолье-Сибирское | C100: Всего | D100: 1,187,539.40 | E100: =E101+E102 -> 169,559.00 | F100: =F101+F102 -> 160,079.80 | G100: =G101+G102 -> 155,159.60 | H100: 223,421.00 | I100: 239,320.00 | J100: 90,000.00 | K100: 50,000.00 | L100: 50,000.00 | M100: 50,000.00
B101: Администрация города | C101: Бюджет города | D101: 1,001,039.40 | E101: =84534.6+50399.4 -> 134,934.00 | F101: =84534.6+40920.2 -> 125,454.80 | G101: =84534.6+36000 -> 120,534.60 | H101: =84534.6+36000-1705.74+70000-32.86 -> 188,796.00 | I101: 191,320.00 | J101: 90,000.00 | K101: 50,000.00 | L101: 50,000.00 | M101: 50,000.00
B102: Дума города | C102: Бюджет города | D102: 186,500.00 | E102: 34,625.00 | F102: 34,625.00 | G102: 34,625.00 | H102: 34,625.00 | I102: 48,000.00 | J102: 0.00 | K102: 0.00 | L102: 0.00 | M102: 0.00
A103: Мероприятие 4.4.3. Информационное сопровождение деятельности органов местного самоуправления города в электронных СМИ (ТВ) и (или) социальных сетях, видеохостингах и госпабликах | B103: Администрация города Усолье-Сибирское, Дума города Усолье-Сибирское | C103: Всего | D103: =D104+D105 -> 4,490,364.10 | E103: =E104+E105 -> 567,050.00 | F103: 513,280.00 | G103: 513,280.00 | H103: 492,606.00 | I103: 382,644.10 | J103: 487,500.00 | K103: 516,164.00 | L103: 508,920.00 | M103: 508,920.00
B104: Администрация города | C104: Бюджет города | D104: =SUM(E104:M104) -> 2,260,076.00 | E104: =377280+53770 -> 431,050.00 | F104: 377,280.00 | G104: 377,280.00 | H104: =377280-17850-1824 -> 357,606.00 | I104: 181,020.00 | J104: =338920-160000-178920 -> 0.00 | K104: =178920+115000-115920 -> 178,000.00 | L104: 178,920.00 | M104: 178,920.00
B105: Дума города | C105: Бюджет города | D105: =SUM(E105:M105) -> 2,230,288.10 | E105: 136,000.00 | F105: 136,000.00 | G105: 136,000.00 | H105: 135,000.00 | I105: 201,624.10 | J105: 487,500.00 | K105: =330000+8164 -> 338,164.00 | L105: 330,000.00 | M105: 330,000.00
A106: Мероприятие 4.4.4. Информационное сопровождение деятельности органов местного самоуправления города в электронных СМИ (Радио) | B106: Администрация города Усолье-Сибирское, Дума города Усолье-Сибирское | C106: Всего | D106: =D107+D108 -> 224,000.00 | E106: =E107+E108 -> 30,000.00 | F106: 30,000.00 | G106: 30,000.00 | H106: 30,000.00 | I106: 34,000.00 | J106: 10,000.00 | K106: 10,000.00 | L106: 25,000.00 | M106: 25,000.00
B107: Администрация города | C107: Бюджет города | D107: =SUM(E107:M107) -> 150,000.00 | E107: 24,000.00 | F107: 24,000.00 | G107: 24,000.00 | H107: 24,000.00 | I107: 24,000.00 | J107: =15000-15000 -> 0.00 | K107: =15000-15000 -> 0.00 | L107: 15,000.00 | M107: 15,000.00
B108: Дума города | C108: Бюджет города | D108: =SUM(E108:M108) -> 74,000.00 | E108: 6,000.00 | F108: 6,000.00 | G108: 6,000.00 | H108: 6,000.00 | I108: 10,000.00 | J108: 10,000.00 | K108: 10,000.00 | L108: 10,000.00 | M108: 10,000.00
A109: Мероприятие 4.4.5. Фото, видео сопровождение реализации национальных проектов на территории МО | B109: Администрация города Усолье-Сибирское | C109: Бюджет города | D109: =SUM(E109:M109) -> 131,705.74 | E109: 0.00 | F109: 0.00 | G109: 130,000.00 | H109: =1705.74 -> 1,705.74 | I109: 0.00 | J109: 0.00 | K109: 0.00 | L109: 0.00 | M109: 0.00
A110: Мероприятие 4.4.6. Информационное сопровождение деятельности органов местного самоуправления в электронных СМИ (сетевые издания) | B110: Администрация города Усолье-Сибирское | C110: Бюджет города | D110: =SUM(E110:M110) -> 298,760.00 | E110: 0.00 | F110: 0.00 | G110: 0.00 | H110: 0.00 | I110: 0.00 | J110: =100000-1240 -> 98,760.00 | K110: =100000-50000-50000 -> 0.00 | L110: 100,000.00 | M110: 100,000.00
A111: Основное мероприятие 4.5. Обеспечение деятельности администрации города Усолье-Сибирское | B111: Администрация города Усолье-Сибирское | C111: Бюджет города | D111: =D112+D113+D114+D115 -> 1,171,092,783.92 | E111: =E112+E113+E114+E115 -> 134,831,689.49 | F111: 105,971,077.68 | G111: 135,235,419.96 | H111: 151,362,962.77 | I111: 140,432,681.63 | J111: 138,041,050.18 | K111: 144,246,567.73 | L111: 109,885,667.24 | M111: 111,085,667.24
A112: Мероприятие 4.5.1. Обеспечение функционирования администрации города Усолье-Сибирское | B112: Администрация города Усолье-Сибирское | C112: Бюджет города | D112: =SUM(E112:M112) -> 1,077,107,874.77 | E112: 84,127,595.18 | F112: =91484403.1+7727610.7+63921-21020-500000-826410+256000+3109489.9 -> 101,293,994.70 | G112: =99572673.72+23171237.13+3636642.24+1917048.3 -> 128,297,601.39 | H112: =111787781.73+16467936.45+262763.55+251921.72-179294.95+18848764.69-23423.45-545964 -> 146,870,485.74 | I112: =133622516.79-145000 -> 133,477,516.79 | J112: 132,279,701.07 | K112: =133186752.63+62360+76800+306890+872177.98+133333.81+4011331 -> 138,649,645.42 | L112: =105405783.76+418798.88+229884+1200.6 -> 106,055,667.24 | M112: =122308099.64-15000000-1253633+1200.6 -> 106,055,667.24
A113: Мероприятие 4.5.2. Обеспечение бесперебойной работы автоматизированных рабочих мест администрации города Усолье-Сибирское | B113: Аппарат администрации города Усолье-Сибирское | C113: Бюджет города | D113: 46,070,892.66 | E113: 3,031,329.09 | F113: =3231816.41+16000-264000-223278+856546+72404+80000-78193+70435.51+500000+382887.06 -> 4,644,617.98 | G113: =4226210.41+1247500+967000-331568.84+800000 -> 6,909,141.57 | H113: =4226253-15000+252256.56 -> 4,463,509.56 | I113: 6,924,993.84 | J113: =7459942.64-900000-828244.53 -> 5,731,698.11 | K113: =5841642.6-62360+94500-23400-425290.66-224887.32+224887.32+140510.57 -> 5,565,602.51 | L113: =5000000-1200000 -> 3,800,000.00 | M113: 5,000,000.00
A114: Мероприятие 4.5.3. Информационно-статистические услуги | B114: Экономический отдел комитета экономического развития администрации города | C114: Бюджет города | D114: 277,378.27 | E114: =40097-3970 -> 36,127.00 | F114: =40097-3970-3662 -> 32,465.00 | G114: =33666-4989 -> 28,677.00 | H114: 28,967.47 | I114: 30,171.00 | J114: =30000-200-149 -> 29,651.00 | K114: =31200.6+119.2 -> 31,319.80 | L114: =31200.6-1200.6 -> 30,000.00 | M114: =31200.6-1200.6 -> 30,000.00
A115: Мероприятие 4.5.4. Содержание МКУ "Централизованная бухгалтерия города Усолье-Сибирское" | B115: МКУ "Централизованная бухгалтерия города Усолье-Сибирское" | C115: Бюджет города | D115: 47,636,638.22 | E115: 47,636,638.22 | F115: 0.00 | G115: 0.00 | H115: 0.00 | I115: 0.00 | J115: 0.00 | K115: 0.00 | L115: 0.00 | M115: 0.00
A116: Основное мероприятие 4.6. Резервный фонд администрации города Усолье-Сибирское | B116: Администрация города Усолье-Сибирское | C116: Бюджет города | D116: 16,564,077.43 | E116: =1000000-750000 -> 250,000.00 | F116: =1000000-750000+328247.67+64800 -> 643,047.67 | G116: =450000+200000+200000 -> 850,000.00 | H116: =11430215.39+90814.37+300000 -> 11,821,029.76 | I116: 1,000,000.00 | J116: =1000000-1000000 -> 0.00 | K116: =1000000-1000000 -> 0.00 | L116: 1,000,000.00 | M116: 1,000,000.00
A117: Основное мероприятие 4.7. Накопление, восполнение резерва материальных ресурсов города Усолье-Сибирское | B117: Администрация города Усолье-Сибирское | C117: Бюджет города | D117: 723,600.00 | E117: 41,400.00 | F117: =200000-200000 -> 0.00 | G117: =200000-200000 -> 0.00 | H117: =200000-200000 -> 0.00 | I117: 200,000.00 | J117: 75,000.00 | K117: =200000-192800 -> 7,200.00 | L117: 200,000.00 | M117: 200,000.00
A118: Основное мероприятие 4.8. Организация и проведение конкурса "Общественное признание" | B118: Дума города Усолье-Сибирское | C118: Бюджет города | D118: 2,884,107.60 | E118: 400,000.00 | F118: =400000-388864 -> 11,136.00 | G118: 400,000.00 | H118: 0.00 | I118: 400,000.00 | J118: 472,971.60 | K118: 400,000.00 | L118: 400,000.00 | M118: 400,000.00
A119: Основное мероприятие 4.9. Предоставление грантов на реализацию проектов бюджетных инициатив, направленных на решение вопросов местного значения муниципального образования "город Усолье-Сибирское" | B119: Экономический отдел комитета экономического развития администрации города | C119: Бюджет города | D119: 1,461,178.17 | E119: 500,000.00 | F119: =500000+500000-38821.83 -> 961,178.17 | G119: 0.00 | H119: 0.00 | I119: 0.00 | J119: 0.00 | K119: 0.00 | L119: 0.00 | M119: 0.00
A120: Основное мероприятие 4.9. Реализация инициативных проектов на территории муниципального образования «город Усолье-Сибирское» | B120: Экономический отдел комитета экономического развития администрации города | C120: Бюджет города | D120: 0.00 | E120: 0.00 | F120: 0.00 | G120: =1000000-893457.15-106542.85 -> 0.00 | H120: =291867.39-200000-46471.97-45395.42 -> 0.00 | I120: 0.00 | J120: 0.00 | K120: 0.00 | L120: 0.00 | M120: 0.00
A121: Основное мероприятие 4.10. Содержание МКУ «Городское управление капитального строительства» | B121: МКУ "Городское управление капитального строительства" | C121: Бюджет города | D121: 155,184,679.30 | E121: 0.00 | F121: =14783926.1-257109.98+212100 -> 14,738,916.12 | G121: =14634937.12+2072456.59 -> 16,707,393.71 | H121: =1037186.46+12917187.64+3000000+83943.2+14527.5 -> 17,052,844.80 | I121: 21,123,612.34 | J121: =21860209.27-12404.09-183208.99 -> 21,664,596.19 | K121: =22522087.08+800000-108000+81610.44 -> 23,295,697.52 | L121: 20,300,809.31 | M121: 20,300,809.31
A122: Основное мероприятие 4.11. Содержание МКУ "Централизованная бухгалтерия города Усолье-Сибирское" | B122: МКУ "Централизованная бухгалтерия города Усолье-Сибирское" | C122: Бюджет города | D122: 529,785,816.10 | E122: 0.00 | F122: =48986954.7+80850+4995-300000 -> 48,772,799.70 | G122: =50088504.84+368984.35+248277.97 -> 50,705,767.16 | H122: =4898054.83+45538092.4+9000000+1509183.43 -> 60,945,330.66 | I122: 68,956,609.60 | J122: =75573044.26-819579.89 -> 74,753,464.37 | K122: =87451844.61+200000 -> 87,651,844.61 | L122: 69,000,000.00 | M122: 69,000,000.00
A123: Основное мероприятие 4.12. Субсидии на реализацию мероприятий перечня проектов народных инициатив | B123: Администрация города Усолье-Сибирское | C123: Всего | D123: =D124+D125 -> 32,967,034.00 | E123: =E124+E125 -> 0.00 | F123: 0.00 | G123: 0.00 | H123: 0.00 | I123: 0.00 | J123: 0.00 | K123: 0.00 | L123: 16,483,517.00 | M123: 16,483,517.00
C124: Бюджет города | D124: =SUM(E124:M124) -> 2,967,034.00 | E124: 0.00 | F124: 0.00 | G124: 0.00 | H124: 0.00 | I124: 0.00 | J124: =1853933-1853933 -> 0.00 | K124: 0.00 | L124: 1,483,517.00 | M124: 1,483,517.00
C125: Областной бюджет | D125: =SUM(E125:M125) -> 30,000,000.00 | E125: 0.00 | F125: 0.00 | G125: 0.00 | H125: 0.00 | I125: 0.00 | J125: =15000000-15000000 -> 0.00 | K125: 0.00 | L125: 15,000,000.00 | M125: 15,000,000.00
A126: Основное мероприятие 4.13. Организация и проведение конкурса "Мы помним - мы гордимся" | B126: Дума города Усолье-Сибирское | C126: Бюджет города | D126: =SUM(E126:M126) -> 36,000.00 | E126: 0.00 | F126: 36,000.00 | G126: 0.00 | H126: 0.00 | I126: 0.00 | J126: 0.00 | K126: 0.00 | L126: 0.00 | M126: 0.00
A127: Основное мероприятие 4.14. Предоставление субсидии на возмещение части затрат в связи с оказанием услуг по организации питания в муниципальных общеобразовательных учреждениях города Усолье-Сибирское | B127: Экономический отдел комитета экономического развития администрации города | C127: Бюджет города | D127: =SUM(E127:M127) -> 2,000,000.00 | E127: 0.00 | F127: 2,000,000.00 | G127: 0.00 | H127: 0.00 | I127: 0.00 | J127: 0.00 | K127: 0.00 | L127: 0.00 | M127: 0.00
A128: Основное мероприятие 4.15. Содержание объектов недвижимого имущества, находящихся в собственности муниципальных образований Иркутской области и расположенных на территориях, которые подверглись загрязнению в результате экономической деятельности, связанной с производством химической продукции | B128: Администрация города Усолье-Сибирское | C128: Всего | D128: =D129+D130 -> 7,347,391.63 | E128: =E129+E130 -> 0.00 | F128: 7,347,391.63 | G128: 0.00 | H128: 0.00 | I128: 0.00 | J128: 0.00 | K128: 0.00 | L128: 0.00 | M128: 0.00
C129: Бюджет города | D129: =SUM(E129:M129) -> 525,362.33 | E129: 0.00 | F129: =300000+225362.33 -> 525,362.33 | G129: 0.00 | H129: 0.00 | I129: 0.00 | J129: 0.00 | K129: 0.00 | L129: 0.00 | M129: 0.00
C130: Областной бюджет | D130: =SUM(E130:M130) -> 6,822,029.30 | E130: 0.00 | F130: 6,822,029.30 | G130: 0.00 | H130: 0.00 | I130: 0.00 | J130: 0.00 | K130: 0.00 | L130: 0.00 | M130: 0.00
A131: Основное мероприятие 4.16. Поощрение муниципальных управленческих команд | B131: Администрация города Усолье-Сибирское, Комитет по управлению муниципальным имуществом администрации города Усолье-Сибирское, Комитет по финансам администрации города Усолье-Сибирское , Комитет по городскому хозяйству администрации города Усолье-Сибирское, Отдел спорта и молодежной политики управления по социально-культурным вопросам администрации города Усолье-Сибирское, Отдел образованияуправления по социально-культурным вопросам города Усолье-Сибирское ,Отдел культуры управления по социально-культурным вопросам администрации города Усолье-Сибирское | C131: Всего | D131: =D133+D134+D135+D136+D137+D138+D139+D140+D141 -> 9,495,200.00 | E131: =E133+E134+E135+E136+E137+E138+E139+E140+E141 -> 0.00 | F131: 0.00 | G131: 4,237,300.00 | H131: 0.00 | I131: 5,257,900.00 | J131: 0.00 | K131: 0.00 | L131: 0.00 | M131: =M133+M134+M135+M136+M137+M138+M139+M140+M141 -> 0.00
B133: Администрация города Усолье-Сибирское | C133: Областной бюджет | D133: =SUM(E133:M133) -> 5,178,168.42 | E133: 0.00 | F133: 0.00 | G133: 3,069,154.04 | H133: 0.00 | I133: 2,109,014.38 | J133: 0.00 | K133: 0.00 | L133: 0.00 | M133: 0.00
B134: МКУ"Централизованная бухгалтерия города Усолье-Сибирское" | C134: Областной бюджет | D134: 680,053.95 | E134: 0.00 | F134: 0.00 | G134: 585,315.48 | H134: 0.00 | I134: 94,738.47 | J134: 0.00 | K134: 0.00 | L134: 0.00 | M134: 0.00
B135: МКУ "Городское управление капитального строительства" | C135: Областной бюджет | D135: 677,568.95 | E135: 0.00 | F135: 0.00 | G135: 582,830.48 | H135: 0.00 | I135: 94,738.47 | J135: 0.00 | K135: 0.00 | L135: 0.00 | M135: 0.00
B136: Комитет по управлению муниципальным имуществом администрации города Усолье-Сибирское | C136: Областной бюджет | D136: 814,846.39 | E136: 0.00 | F136: 0.00 | G136: 0.00 | H136: 0.00 | I136: 814,846.39 | J136: 0.00 | K136: 0.00 | L136: 0.00 | M136: 0.00
B137: Комитет по финансам администрации города Усолье-Сибирское | C137: Областной бюджет | D137: 623,117.83 | E137: 0.00 | F137: 0.00 | G137: 0.00 | H137: 0.00 | I137: 623,117.83 | J137: 0.00 | K137: 0.00 | L137: 0.00 | M137: 0.00
B138: Комитет по городскому хозяйству администрации города Усолье-Сибирское | C138: Областной бюджет | D138: 479,321.40 | E138: 0.00 | F138: 0.00 | G138: 0.00 | H138: 0.00 | I138: 479,321.40 | J138: 0.00 | K138: 0.00 | L138: 0.00 | M138: 0.00
B139: Отдел спорта и молодежной политики управления по социально-культурным вопросам администрации города Уоолье-Сибирское | C139: Областной бюджет | D139: 94,738.47 | E139: 0.00 | F139: 0.00 | G139: 0.00 | H139: 0.00 | I139: 94,738.47 | J139: 0.00 | K139: 0.00 | L139: 0.00 | M139: 0.00
B140: Отдел образования управления по социально-культурным вопросам администрации города Усолье-Сибирское | C140: Областной бюджет | D140: 805,276.89 | E140: 0.00 | F140: 0.00 | G140: 0.00 | H140: 0.00 | I140: 805,276.89 | J140: 0.00 | K140: 0.00 | L140: 0.00 | M140: 0.00
B141: Отдел культуры управления по социально-культурным вопросам администрации города Усолье-Сибирское | C141: Областной бюджет | D141: 142,107.70 | E141: 0.00 | F141: 0.00 | G141: 0.00 | H141: 0.00 | I141: 142,107.70 | J141: 0.00 | K141: 0.00 | L141: 0.00 | M141: 0.00
A142: Основное мероприятие 4.17. Организация регулярных перевозок пассажиров и багажа наземным транспортом по регулируемым тарифам в границах города Усолье-Сибирское | B142: Отдел по благоустройству и экологии комитета по городскому хозяйству администрации города | C142: Бюджет города | D142: 31,651,049.58 | E142: 0.00 | F142: 0.00 | G142: 0.00 | H142: 3,342,102.06 | I142: 7,923,299.87 | J142: =9185647.65+2000000 -> 11,185,647.65 | K142: 9,200,000.00 | L142: 0.00 | M142: 0.00
A143: Основное мероприятие 4.18. Содержание комитета по городскому хозяйству администрации города | B143: Комитет по городскому хозяйству администрации города Усолье-Сибирское | C143: Бюджет города | D143: 185,659,275.43 | E143: 0.00 | F143: 0.00 | G143: 0.00 | H143: 0.00 | I143: 31,472,560.38 | J143: 36,818,802.09 | K143: =41152725.43+410846.83+12500+1061.76-2503340.92-4011331 -> 35,062,462.10 | L143: 41,152,725.43 | M143: 41,152,725.43
A144: Основное мероприятие 4.19.Реализация инициативных проектов, выдвигаемых для получения финансовой поддержки из бюджета Иркутской области | B144: Администрация города Усолье-Сибирское | C144: Всего | D144: 0.00 | E144: 0.00 | F144: 0.00 | G144: 0.00 | H144: 0.00 | I144: 0.00 | J144: 0.00 | K144: 0.00 | L144: 0.00 | M144: 0.00
B145: Администрация города Усолье-Сибирское | C145: Бюджет города | D145: 0.00 | E145: 0.00 | F145: 0.00 | G145: 0.00 | H145: 0.00 | I145: 0.00 | J145: 0.00 | K145: 0.00 | L145: 0.00 | M145: 0.00
B146: Администрация города Усолье-Сибирское | C146: Областной бюджет | D146: 0.00 | E146: 0.00 | F146: 0.00 | G146: 0.00 | H146: 0.00 | I146: 0.00 | J146: 0.00 | K146: 0.00 | L146: 0.00 | M146: 0.00
A147: Основное мероприятие 4.20. Мероприятие по вручению знака за педагогическую доблесть | B147: Дума города Усолье-Сибирское | C147: Бюджет города | D147: 500,000.00 | E147: 0.00 | F147: 0.00 | G147: 0.00 | H147: 0.00 | I147: 500,000.00 | J147: 0.00 | K147: 0.00 | L147: 0.00 | M147: 0.00
A148: Основное мероприятие 4.21. Исполнение наказов избирателей | B148: Дума города Усолье-Сибирское | C148: Бюджет города | D148: 0.00 | E148: 0.00 | F148: 0.00 | G148: 0.00 | H148: 0.00 | I148: 0.00 | J148: =2000000-2000000 -> 0.00 | K148: 0.00 | L148: 0.00 | M148: 0.00
A149: Основное мероприятие 4.22. Выплаты семейным парам за долгий брак ко Дню семьи, любви и верности | B149: Дума города Усолье-Сибирское | C149: Бюджет города | D149: 229,884.00 | E149: 0.00 | F149: 0.00 | G149: 0.00 | H149: 0.00 | I149: 0.00 | J149: 229,884.00 | K149: 0.00 | L149: 0.00 | M149: 0.00
A150: Основное мероприятие 4.23. Организация и проведение конкурса "Моя усольская семья" | B150: Дума города Усолье-Сибирское | C150: Бюджет города | D150: 35,500.00 | E150: 0.00 | F150: 0.00 | G150: 0.00 | H150: 0.00 | I150: 0.00 | J150: 35,500.00 | K150: 0.00 | L150: 0.00 | M150: 0.00
A151: Основное мероприятие 4.24. Содержание МКУ "Чистый город" | B151: МКУ "Чистый город" | C151: Бюджет города | D151: =SUM(E151:M151) -> 524,873.50 | E151: 0.00 | F151: 0.00 | G151: 0.00 | H151: 0.00 | I151: 0.00 | J151: 0.00 | K151: 524,873.50 | L151: 0.00 | M151: 0.00
A153: Мэр города М.В. Торопкин

Sheet Лист1
F3: 41152725.43
F4: 7200000
F5: 16650000
F6: 66152263.6
F7: 7420126.66
F8: 21594209.73
F9: 2000000
F10: 400000
F11: 200000
F12: 1000000
F13: 30000
F14: 7509942.64
F15: 138881410.3
F16: 25000
F17: 668920
F18: 150000
F19: 145905
F20: 1600000
F21: 2500000
F22: =SUM(F3:F21) -> 315280503.4
